bitfinex-derivatives/quotes_SOLF0:USTF0_20250224
["timestamp","ask_amount","ask_price","bid_price","bid_amount"]
[1740378597477,13.64495755,159.59,159.56,6.2661]
[1740378597877,13.64495755,159.59,159.55,13.64256012]
[1740378598079,0.04538596,159.59,159.57,6.2657]
[1740378598386,0.04538596,159.59,159.57,13.59957159]
[1740378598582,8.38,159.65,159.6,13.59957159]
[1740378599477,13.59957159,159.64,159.58,13.59957159]
[1740378599677,13.64047866,159.64,159.61,0.04704377]
[1740378600077,13.59957159,159.62,159.61,0.04704377]
[1740378601689,6.2639,159.63,159.61,0.04704377]
[1740378601885,21.24858345,159.64,159.61,0.04704377]
[1740378602090,21.20767638,159.62,159.52,24.98827638]
[1740378602585,23.01437638,159.62,159.52,24.98827638]
[1740378602788,6.2649,159.6,159.55,6.2666]
[1740378603294,0.04363153,159.59,159.56,0.0450817]
[1740378603496,0.04363153,159.59,159.57,6.2659]
[1740378603993,0.04363153,159.59,159.56,0.0450817]
[1740378604589,0.04363153,159.59,159.58,6.2656]
[1740378604790,3.8886,159.67,159.58,21.20767638]
[1740378604990,8.36,159.68,159.64,6.263]
[1740378605392,92.21282324,159.71,159.6,21.20767638]
[1740378605686,9.49767276,159.7,159.6,21.20767638]
[1740378605888,0.04559174,159.67,159.64,0.04386801]
[1740378607293,9.174e-05,159.67,159.66,6.2625]
[1740378607588,68.49995925,159.71,159.66,21.20767638]
[1740378607794,68.49995925,159.71,159.7,6.2609]
[1740378607996,59.39755925,159.71,159.7,6.2609]
[1740378608794,0.04462487,159.72,159.69,0.04332275]
[1740378609701,0.04462487,159.72,159.71,6.2605]
[1740378611294,0.04462487,159.72,159.69,6.30452275]
[1740378611691,0.04462487,159.72,159.69,0.04332275]
[1740378614995,0.04462487,159.72,159.69,6.30462275]
[1740378616305,0.04462487,159.72,159.69,0.04332275]
[1740378617704,0.04462487,159.72,159.71,6.2605]
[1740378618298,8.36,159.78,159.74,6.2591]
[1740378619009,6.2576,159.79,159.74,6.2591]
[1740378619200,6.2576,159.79,159.61,192.7877]
[1740378619201,21.20767638,159.83,159.72,21.20767638]
[1740378619402,0.04395959,159.78,159.76,6.2583]
[1740378620602,0.04395959,159.78,159.77,6.2582]
[1740378623308,5.959e-05,159.78,159.77,6.2582]
[1740378623509,1.13878839,159.86,159.76,42.41535276]
[1740378623710,10.042,159.87,159.8,21.20767638]
[1740378624507,10.042,159.87,159.83,6.2558]
[1740378624712,0.04573608,159.85,159.83,6.2558]
[1740378627311,0.04573608,159.85,159.84,6.2555]
[1740378628611,0.04573608,159.85,159.82,21.25308563]
[1740378628808,0.04573608,159.85,159.83,6.2558]
[1740378629703,0.04573608,159.85,159.82,0.04540925]
[1740378630013,0.04573608,159.85,159.84,21.20767638]
[1740378630604,0.04573608,159.85,159.84,27.46317638]
[1740378630811,0.04573608,159.85,159.84,6.2555]
[1740378631317,0.04573608,159.85,159.82,21.25308563]
[1740378631509,0.04573608,159.85,159.83,6.2558]
[1740378631710,0.04573608,159.85,159.82,0.04540925]
[1740378631912,6.30113608,159.85,159.82,0.04540925]
[1740378632110,0.04573608,159.85,159.82,0.04540925]
[1740378632308,8.36,159.84,159.82,0.04540925]
[1740378633416,6.2558,159.83,159.82,0.04540925]
[1740378633917,8.36,159.84,159.82,0.04540925]
[1740378634314,0.04573608,159.85,159.82,0.04540925]
[1740378634516,0.04573608,159.85,159.82,6.30130925]
[1740378635016,0.04573608,159.85,159.82,0.04540925]
[1740378635417,0.04573608,159.85,159.83,6.2555]
[1740378635915,0.04573608,159.85,159.82,0.04540925]
[1740378636215,0.04573608,159.85,159.82,6.30140925]
[1740378637016,0.04573608,159.85,159.82,0.04540925]
[1740378637610,0.04573608,159.85,159.84,6.2555]
[1740378642119,68.07546323,160.06,159.84,33.71857638]
[1740378642120,0.92187016,160.02,159.84,33.71857638]
[1740378642326,3.7253,159.99,159.91,21.20767638]
[1740378643224,0.04360692,159.97,159.93,0.04793732]
[1740378643820,0.04360692,159.97,159.96,6.2508]
[1740378647029,6.92e-06,159.97,159.96,6.2508]
[1740378647429,1.8532,160.06,160.02,6.2481]
[1740378647623,1.8532,160.06,159.97,33.7583861]
[1740378647929,1.8532,160.06,159.94,33.7583861]
[1740378648522,8.1003,160.06,159.98,0.03991113]
[1740378649331,8.1003,160.06,159.99,6.2492]
[1740378649530,6.2481,160.03,159.98,0.03991113]
[1740378649730,1.8991,160.02,159.98,0.03991113]
[1740378649932,1.9812,160.01,159.98,0.03991113]
[1740378652033,8.36,160.0,159.98,0.03991113]
[1740378654631,1.9812,160.01,159.98,0.03991113]
[1740378655033,1.9812,160.01,159.99,6.2495]
[1740378655238,8.34,160.04,159.98,0.03991113]
[1740378655433,8.34,160.04,160.01,6.2487]
[1740378655735,1.8532,160.06,160.0,33.7583861]
[1740378656035,1.8532,160.06,160.02,6.2481]
[1740378656236,1.8532,160.06,160.01,0.04096849]
[1740378656637,1.8532,160.06,160.03,6.248]
[1740378657335,1.8532,160.06,160.04,6.2473]
[1740378658734,1.8532,160.06,160.01,0.04096849]
[1740378659033,1.8532,160.06,160.05,6.2472]
[1740378659538,1.8532,160.06,160.01,0.04096849]
[1740378659733,1.8532,160.06,160.04,6.2476]
[1740378661240,8.1002,160.06,160.02,6.2482]
[1740378661630,1.8532,160.06,160.01,6.28966849]
[1740378661833,6.2473,160.05,160.01,6.28966849]
[1740378664335,1.8532,160.06,160.04,6.2476]
[1740378668339,3.7067,160.09,160.02,21.08471536]
[1740378668643,1.9006,160.09,160.01,0.04096849]
[1740378668848,1.9006,160.09,160.07,21.08471536]
[1740378669050,16.5712,160.12,160.08,6.2459]
[1740378669245,1.9865,160.12,160.07,21.08471536]
[1740378669649,1.9865,160.12,160.1,6.2452]
[1740378670450,1.9865,160.12,160.11,6.2449]
[1740378671653,1.9865,160.12,160.1,6.2451]
[1740378672049,1.9865,160.12,160.09,0.04463162]
[1740378672649,8.231,160.12,160.09,0.04463162]
[1740378672853,1.9865,160.12,160.05,21.08471536]
[1740378673049,1.9865,160.12,160.03,21.08471536]
[1740378673247,6.2458,160.09,160.03,27.33261536]
[1740378674155,0.04683992,160.08,160.04,0.047777]
[1740378674355,0.04683992,160.08,160.05,6.247]
[1740378674555,0.04683992,160.08,160.05,27.33171536]
[1740378674756,0.04683992,160.08,160.05,6.247]
[1740378675256,0.04683992,160.08,160.07,6.2465]
[1740378676152,0.04683992,160.08,160.07,27.33121536]
[1740378676456,0.04683992,160.08,160.04,0.047777]
[1740378677557,21.08471536,160.07,159.99,163.62]
[1740378677759,21.08471536,160.05,159.95,21.08471536]
[1740378677960,21.08471536,160.05,159.97,6.2504]
[1740378677961,8.34,160.04,159.97,6.2504]
[1740378678156,10.2094,160.04,159.97,6.2504]
[1740378678451,6.2487,160.02,159.97,6.2504]
[1740378678960,0.04305386,160.01,159.98,0.03993635]
[1740378680055,6.29185386,160.01,159.98,0.03993635]
[1740378680758,0.04305386,160.01,159.98,0.03993635]
[1740378681856,0.04305386,160.01,160.0,6.2492]
[1740378682862,0.04305386,160.01,159.99,27.33421536]
[1740378683063,0.04305386,160.01,159.99,21.08471536]
[1740378684265,0.04305386,160.01,159.99,27.33401536]
[1740378684465,0.04305386,160.01,159.99,21.08471536]
[1740378684766,0.04305386,160.01,159.99,27.33411536]
[1740378684967,0.04305386,160.01,159.98,0.03993635]
[1740378686463,6.29195386,160.01,159.98,0.03993635]
[1740378686665,0.04305386,160.01,159.98,0.03993635]
[1740378687062,6.2494,160.0,159.98,0.03993635]
[1740378687563,0.04305386,160.01,159.98,0.03993635]
[1740378687965,0.04305386,160.01,159.98,6.28963635]
[1740378688969,0.04305386,160.01,159.98,0.03993635]
[1740378690074,0.04305386,160.01,159.98,6.28963635]
[1740378690775,0.04305386,160.01,159.98,0.03993635]
[1740378691276,0.04305386,160.01,159.98,6.28963635]
[1740378693571,0.04305386,160.01,159.99,6.2495]
[1740378693779,5.386e-05,160.01,159.99,21.08471536]
[1740378694075,68.07546323,160.11,160.0,21.08471536]
[1740378694273,68.07546323,160.11,160.07,21.08471536]
[1740378694673,68.07546323,160.11,160.1,6.2453]
[1740378694875,68.07546323,160.11,160.07,21.08471536]
[1740378695073,68.07546323,160.11,160.09,6.2456]
[1740378695269,68.11606694,160.11,160.09,21.08471536]
[1740378695577,68.11606694,160.11,160.1,6.2453]
[1740378695878,65.13816694,160.11,160.1,6.2453]
[1740378696075,65.13816694,160.11,160.09,21.08471536]
[1740378696972,65.13816694,160.11,160.09,27.33031536]
[1740378697877,65.13816694,160.11,160.09,21.08471536]
[1740378698176,0.04060371,160.11,160.07,21.12471955]
[1740378698778,0.04060371,160.11,160.09,6.2457]
[1740378700282,0.04060371,160.11,160.08,6.246]
[1740378702975,0.04060371,160.11,160.07,6.28640419]
[1740378704684,0.04060371,160.11,160.07,0.04000419]
[1740378704879,8.34,160.1,160.07,0.04000419]
[1740378705082,29.42471536,160.1,160.07,0.04000419]
[1740378705282,6.2461,160.08,160.07,0.04000419]
[1740378705581,1.8768,160.09,160.02,163.64]
[1740378705778,1.8768,160.09,160.0,21.08471536]
[1740378706283,1.8768,160.09,160.02,21.08471536]
[1740378706782,0.04660616,160.07,160.04,0.04047258]
[1740378709788,6.29320616,160.07,160.04,0.04047258]
[1740378710292,6.2472,160.05,160.04,0.04047258]
[1740378710479,0.04660616,160.07,159.95,0.7312]
[1740378710480,21.08471536,160.06,159.97,6.2503]
[1740378710681,22.88581536,160.06,159.97,6.2503]
[1740378711086,6.2482,160.03,159.98,6.25]
[1740378711287,22.88581536,160.06,159.96,21.08471536]
[1740378711686,0.04279735,160.03,159.99,0.04143869]
[1740378712385,6.249,160.01,159.99,0.04143869]
[1740378713891,6.2492,160.0,159.99,0.04143869]
[1740378714389,31.41071536,160.02,159.92,184.64471536]
[1740378714791,6.2496,159.99,159.93,6.2517]
[1740378715689,0.04433646,159.98,159.94,6.29587597]
[1740378715985,0.04433646,159.98,159.94,0.04437597]
[1740378716179,0.04433646,159.98,159.96,21.08471536]
[1740378717492,0.04433646,159.98,159.97,6.2504]
[1740378720787,3.646e-05,159.98,159.97,6.2504]
[1740378720988,1.9333,160.05,160.02,6.2482]
[1740378721191,1.9333,160.05,159.99,21.08471536]
[1740378721694,1.8011,160.06,159.99,21.08471536]
[1740378722299,1.8011,160.06,160.04,6.2476]
[1740378722790,22.88581536,160.06,160.01,0.0478521]
[1740378723190,1.8011,160.06,160.03,6.2479]
[1740378723391,8.38408663,160.07,160.01,0.0478521]
[1740378724001,8.38408663,160.07,160.03,6.248]
[1740378724505,6.2478,160.04,160.01,0.0478521]
[1740378725193,6.2483,160.03,160.01,0.0478521]
[1740378725498,21.08471536,160.04,160.01,0.0478521]
[1740378725799,6.2484,160.02,160.01,0.0478521]
[1740378726401,21.08471536,160.02,159.96,6.2506]
[1740378726698,1.9348,160.01,159.96,6.2506]
[1740378726898,1.9348,160.01,159.95,6.2509]
[1740378727202,6.2493,160.0,159.93,21.08471536]
[1740378727399,1.9348,160.01,159.93,21.08471536]
[1740378727594,0.04393631,159.98,159.95,6.29763654]
[1740378729597,0.04393631,159.98,159.97,6.2504]
[1740378730997,0.04393631,159.98,159.95,0.04673654]
[1740378731707,0.04393631,159.98,159.97,6.2504]
[1740378732606,1.9075559,161.15,159.97,21.08471536]
[1740378732607,68.75177085,160.13,159.97,21.08471536]
[1740378732815,70.69907085,160.13,160.05,21.08471536]
[1740378733508,91.78378621,160.13,160.02,21.08471536]
[1740378733709,0.04458295,160.11,160.07,0.04707494]
[1740378735110,22.27007294,160.11,159.99,21.08471536]
[1740378735315,21.08471536,160.09,159.99,21.08471536]
[1740378735516,21.08471536,160.11,159.99,21.08471536]
[1740378735715,1.9473,160.13,160.0,33.73128596]
[1740378735916,1.14089565,160.12,160.0,33.73128596]
[1740378736118,1.9473,160.13,160.08,6.2461]
[1740378736413,1.9473,160.13,160.0,33.73128596]
[1740378736608,0.04286531,160.12,160.09,0.04052845]
[1740378736811,1.9473,160.13,160.0,33.73128596]
[1740378737011,1.9473,160.13,160.09,0.04693993]
[1740378737214,0.04708151,160.08,160.0,33.73128596]
[1740378737513,0.04048592,160.06,160.02,0.03983682]
[1740378737715,0.04048592,160.06,160.0,33.73128596]
[1740378737915,0.04048592,160.06,160.05,6.2472]
[1740378742620,1.8724,160.14,160.12,6.2445]
[1740378743116,1.8724,160.14,160.07,33.73128596]
[1740378743310,1.8724,160.14,160.13,6.2441]
[1740378743515,1.8974,160.18,160.07,33.73128596]
[1740378743714,0.04233819,160.15,160.12,0.04398031]
[1740378744423,0.04233819,160.15,160.12,6.28808031]
[1740378745220,0.04233819,160.15,160.13,6.2441]
[1740378745613,0.04233819,160.15,160.12,0.04398031]
[1740378745818,0.04233819,160.15,160.14,6.2437]
[1740378747221,68.75177085,160.24,160.12,0.04398031]
[1740378747420,3.7766,160.23,160.13,33.73128596]
[1740378748317,1.9627,160.23,160.22,6.2406]
[1740378749422,1.9627,160.23,160.21,0.04106938]
[1740378752418,1.9627,160.23,160.13,33.73128596]
[1740378752827,6.2407,160.22,160.16,6.2427]
[1740378753022,1.9627,160.23,160.16,6.2427]
[1740378753424,0.04243968,160.21,160.18,0.04423201]
[1740378755726,0.04243968,160.21,160.19,6.2415]
[1740378755926,0.04243968,160.21,160.18,0.04423201]
[1740378756427,0.04243968,160.21,160.2,6.2414]
[1740378757120,8.42,160.32,160.25,6.2391]
[1740378757325,1.14268862,160.28,160.25,6.2391]
[1740378757727,1.14268862,160.28,160.21,21.03067061]
[1740378757922,1.9157,160.31,160.27,6.2387]
[1740378758318,0.0427715,160.3,160.28,6.2383]
[1740378758527,1.9157,160.31,160.23,21.03067061]
[1740378758728,0.04103078,160.3,160.27,0.03998471]
[1740378758927,0.04103078,160.3,160.27,6.27848471]
[1740378759326,0.04103078,160.3,160.27,0.03998471]
[1740378759728,0.04103078,160.3,160.28,6.2379]
[1740378761825,0.04103078,160.3,160.29,6.2379]
[1740378762333,1.8702,160.34,160.27,21.07065532]
[1740378763035,1.8702,160.34,160.31,6.237]
[1740378763235,22.99247061,160.38,160.27,21.03067061]
[1740378763435,1.143295,160.37,160.29,21.03067061]
[1740378763633,0.04610422,160.32,160.29,21.07622876]
[1740378764341,4.22e-06,160.32,160.31,6.2371]
[1740378764635,4.22e-06,160.32,160.31,27.26777061]
[1740378765035,21.03067061,160.42,160.31,27.26777061]
[1740378765036,89.78244146,160.46,160.31,21.03067061]
[1740378765242,4.82349421,160.45,160.36,21.03067061]
[1740378765440,4.82349421,160.45,160.34,21.03067061]
[1740378765441,22.17396482,160.44,160.34,21.03067061]
[1740378765638,21.03067061,160.42,160.32,21.03067061]
[1740378765838,1.14329421,160.41,160.32,21.03067061]
[1740378766135,0.02376402,160.38,160.35,0.04254129]
[1740378768642,6.25816402,160.38,160.35,0.04254129]
[1740378768941,0.02376402,160.38,160.35,6.27804129]
[1740378769544,0.02376402,160.38,160.35,0.04254129]
[1740378771744,6.2351,160.37,160.35,0.04254129]
[1740378773041,3.79356402,160.38,160.35,0.04254129]
[1740378773646,6.2351,160.37,160.35,0.04254129]
[1740378773836,3.79356402,160.38,160.35,0.04254129]
[1740378774147,0.02376402,160.38,160.37,6.2348]
[1740378780050,6.402e-05,160.38,160.37,6.2348]
[1740378792360,3.9136,160.46,160.43,6.2324]
[1740378793660,3.9136,160.46,160.43,6.2787333]
[1740378795460,6.2318,160.45,160.43,0.0463333]
[1740378795759,6.2318,160.45,160.41,6.2331]
[1740378796867,6.27449721,160.45,160.41,6.28068813]
[1740378797669,0.04269721,160.45,160.41,0.04758813]
[1740378800065,6.2321,160.44,160.41,0.04758813]
[1740378801766,0.04269721,160.45,160.41,0.04758813]
[1740378801966,6.27459721,160.45,160.41,0.04758813]
[1740378803670,0.04269721,160.45,160.41,6.28048813]
[1740378804570,6.27459721,160.45,160.41,6.28048813]
[1740378806168,0.04269721,160.45,160.41,0.04758813]
[1740378806367,6.2323,160.44,160.41,0.04758813]
[1740378807372,6.2327,160.43,160.41,0.04758813]
[1740378809074,0.04269721,160.45,160.41,0.04758813]
[1740378809274,6.2322,160.44,160.41,0.04758813]
[1740378809477,0.04269721,160.45,160.41,0.04758813]
[1740378809670,13.47499,160.45,160.41,0.04758813]
[1740378810071,13.47499,160.45,160.41,6.28058813]
[1740378810276,13.47499,160.45,160.41,0.04758813]
[1740378810779,13.47499,160.45,160.42,6.2326]
[1740378810972,13.47499,160.45,160.41,0.04758813]
[1740378810973,0.04269721,160.45,160.41,0.04758813]
[1740378811373,0.04269721,160.45,160.42,13.43229279]
[1740378811677,0.04269721,160.45,160.41,0.04758813]
[1740378812877,6.27449721,160.45,160.41,0.04758813]
[1740378813079,0.04269721,160.45,160.41,0.04758813]
[1740378813976,0.04269721,160.45,160.42,6.2328]
[1740378814475,0.04269721,160.45,160.41,0.04758813]
[1740378814675,6.27449721,160.45,160.41,6.28068813]
[1740378815170,0.04269721,160.45,160.41,6.28068813]
[1740378815779,6.2333,160.41,160.32,20.98512542]
[1740378815981,35.53842542,160.41,160.31,163.28]
[1740378816282,6.2336,160.4,160.34,6.2359]
[1740378816475,29.30512542,160.41,160.34,6.2359]
[1740378816681,3.802,160.39,160.34,6.2359]
[1740378816883,3.84306776,160.39,160.36,0.04592706]
[1740378817381,10.07736776,160.39,160.36,0.04592706]
[1740378818784,3.84306776,160.39,160.36,0.04592706]
[1740378819278,3.84306776,160.39,160.36,6.28082706]
[1740378819482,3.84306776,160.39,160.36,0.04592706]
[1740378820083,3.84306776,160.39,160.36,6.28102706]
[1740378820683,3.84306776,160.39,160.36,0.04592706]
[1740378822482,10.07716776,160.39,160.36,0.04592706]
[1740378822776,31.06229318,160.39,160.36,0.04592706]
[1740378823883,24.82819318,160.39,160.36,0.04592706]
[1740378824079,6.2344,160.38,160.36,0.04592706]
[1740378824277,24.82819318,160.39,160.36,0.04592706]
[1740378824677,24.82819318,160.39,160.3,20.98512542]
[1740378824872,24.82819318,160.39,160.28,20.98512542]
[1740378825073,24.78712542,160.39,160.28,20.98512542]
[1740378825281,6.2345,160.38,160.33,6.2361]
[1740378825481,24.78712542,160.39,160.28,20.98512542]
[1740378825681,24.78712542,160.39,160.31,0.04483808]
[1740378825682,0.04039501,160.35,160.31,0.04483808]
[1740378826885,0.04039501,160.35,160.33,6.2361]
[1740378828886,0.04039501,160.35,160.32,6.2366]
[1740378829282,0.04039501,160.35,160.31,0.04483808]
[1740378829681,0.04039501,160.35,160.32,6.2366]
[1740378829887,0.04039501,160.35,160.31,0.04483808]
[1740378830189,0.04039501,160.35,160.31,6.28173808]
[1740378830390,0.04039501,160.35,160.31,0.04483808]
[1740378830790,0.04039501,160.35,160.31,6.28183808]
[1740378831290,0.04039501,160.35,160.31,0.04483808]
[1740378831691,0.04039501,160.35,160.31,6.28193808]
[1740378832689,13.44362259,160.34,160.31,0.04483808]
[1740378833394,6.27609501,160.35,160.31,0.04483808]
[1740378833594,19.7197176,160.35,160.31,0.04483808]
[1740378834888,13.44362259,160.33,160.31,0.04483808]
[1740378835193,13.44362259,160.33,160.29,6.2377]
[1740378835393,1.9371,160.32,160.29,6.2377]
[1740378835593,13.44362259,160.31,160.29,6.2377]
[1740378835788,13.44362259,160.31,160.26,6.2387]
[1740378835984,13.44362259,160.29,160.26,6.2387]
[1740378836183,13.44362259,160.27,160.21,13.44362259]
[1740378836488,8.32,160.3,160.23,13.44362259]
[1740378836489,13.44362259,160.29,160.23,13.44362259]
[1740378836689,0.04234383,160.26,160.23,13.44362259]
[1740378837895,0.04234383,160.26,160.22,0.03946434]
[1740378838793,0.04234383,160.26,160.22,6.27996434]
[1740378839299,13.44362259,160.25,160.22,6.27996434]
[1740378839986,13.44362259,160.25,160.23,6.2401]
[1740378841294,0.04234383,160.26,160.23,13.44362259]
[1740378841489,0.04234383,160.26,160.25,13.44362259]
[1740378841798,0.04234383,160.26,160.25,19.68312259]
[1740378843596,0.04234383,160.26,160.25,6.2395]
[1740378844693,0.04234383,160.26,160.23,6.2399]
[1740378844899,0.04234383,160.26,160.22,0.03946434]
[1740378844900,13.44362259,160.24,160.22,0.03946434]
[1740378845592,0.04234383,160.26,160.22,0.03946434]
[1740378846899,21.04102854,160.25,160.22,0.03946434]
[1740378847101,8.32,160.24,160.22,0.03946434]
[1740378850302,14.5599,160.24,160.22,0.03946434]
[1740378850696,8.32,160.24,160.22,0.03946434]
[1740378850896,21.04102854,160.23,160.17,6.2423]
[1740378851098,21.04102854,160.23,160.14,163.3]
[1740378851704,6.2414,160.2,160.15,6.2432]
[1740378852203,0.03973527,160.19,160.16,0.04168564]
[1740378852798,0.03973527,160.19,160.16,6.28458564]
[1740378853598,0.03973527,160.19,160.16,0.04168564]
[1740378853996,0.03973527,160.19,160.16,21.08271418]
[1740378854400,0.03973527,160.19,160.18,6.2422]
[1740378861097,0.03973527,160.19,160.17,6.2423]
[1740378861301,0.03973527,160.19,160.16,0.04168564]
[1740378861704,0.03973527,160.19,160.17,6.2426]
[1740378862509,0.03973527,160.19,160.16,0.04168564]
[1740378862808,0.03973527,160.19,160.17,6.2426]
[1740378864514,0.03973527,160.19,160.18,6.2422]
[1740378865111,0.03973527,160.19,160.16,0.04168564]
[1740378865810,0.03973527,160.19,160.17,6.2422]
[1740378866707,0.03973527,160.19,160.16,0.04168564]
[1740378866907,13.51314013,160.19,160.16,0.04168564]
[1740378868304,13.51314013,160.19,160.16,6.28438564]
[1740378869511,13.51314013,160.19,160.16,0.04168564]
[1740378869711,13.47340486,160.17,160.08,13.47340486]
[1740378869911,13.47340486,160.14,160.08,13.47340486]
[1740378870113,13.47340486,160.14,160.09,6.2455]
[1740378870714,19.71740486,160.14,160.08,19.71930486]
[1740378870908,0.04142131,160.13,160.1,0.04733709]
[1740378871114,13.47340486,160.12,160.1,0.04733709]
[1740378871303,13.47340486,160.12,160.02,41.11841775]
[1740378871509,13.47340486,160.06,160.02,41.11841775]
[1740378871710,13.47340486,160.06,160.02,34.87031775]
[1740378872414,8.34,160.07,160.02,48.34372261]
[1740378872612,0.0463668,160.06,160.04,13.47340486]
[1740378873016,0.0463668,160.06,160.04,19.72080486]
[1740378873717,0.0463668,160.06,160.04,13.47340486]
[1740378874220,0.0463668,160.06,160.02,13.51509703]
[1740378874410,0.0463668,160.06,160.02,19.76349703]
[1740378875719,0.0463668,160.06,160.02,0.04169217]
[1740378877518,6.2932668,160.06,160.02,0.04169217]
[1740378879023,0.0463668,160.06,160.02,0.04169217]
[1740378879321,6.2472,160.05,160.02,0.04169217]
[1740378880215,6.248,160.04,160.02,0.04169217]
[1740378880417,22.89464562,160.05,160.02,0.04169217]
[1740378881922,6.2479,160.04,160.02,0.04169217]
[1740378882127,22.89464562,160.05,160.02,0.04169217]
[1740378882427,1.8064,160.05,160.02,0.04169217]
[1740378887127,6.2477,160.04,160.02,0.04169217]
[1740378888029,6.248,160.03,160.02,0.04169217]
[1740378889126,6.248,160.03,159.98,6.2498]
[1740378889324,24.81034562,160.05,159.93,21.35554562]
[1740378889627,6.2484,160.02,159.97,6.2503]
[1740378890025,6.249,160.01,159.96,6.2507]
[1740378890426,0.04000874,160.0,159.97,0.04767451]
[1740378890631,6.28940874,160.0,159.97,0.04767451]
[1740378890929,0.04000874,160.0,159.97,0.04767451]
[1740378891319,6.2497,159.99,159.97,0.04767451]
[1740378894130,6.28940874,160.0,159.97,0.04767451]
[1740378895530,6.2496,159.99,159.97,0.04767451]
[1740378895720,19.75824151,159.99,159.97,0.04767451]
[1740378896230,13.50864151,159.99,159.97,0.04767451]
[1740378900125,0.04000874,160.0,159.97,0.04767451]
[1740378900428,0.04000874,160.0,159.98,13.50864151]
[1740378900634,0.04000874,160.0,159.98,19.75844151]
[1740378900930,0.04000874,160.0,159.97,0.04767451]
[1740378901130,13.54865025,160.0,159.97,0.04767451]
[1740378901331,0.04000874,160.0,159.97,0.04767451]
[1740378901734,0.04000874,160.0,159.98,6.2498]
[1740378902029,0.04000874,160.0,159.98,13.50864151]
[1740378902232,0.04000874,160.0,159.99,6.2496]
[1740378902527,0.04000874,160.0,159.97,0.04767451]
[1740378902931,0.04000874,160.0,159.98,6.2497]
[1740378903133,0.04000874,160.0,159.97,0.04767451]
[1740378904129,0.04000874,160.0,159.98,6.25]
[1740378904535,0.04000874,160.0,159.97,0.04767451]
[1740378904736,0.04000874,160.0,159.97,6.29787451]
[1740378905735,0.04000874,160.0,159.97,0.04767451]
[1740378906339,0.04000874,160.0,159.98,6.2497]
[1740378907733,0.04000874,160.0,159.97,0.04767451]
[1740378908629,0.04000874,160.0,159.98,6.25]
[1740378909137,0.04000874,160.0,159.98,6.2497]
[1740378909938,0.04000874,160.0,159.97,6.29797451]
[1740378910333,0.04000874,160.0,159.97,0.04767451]
[1740378911539,0.04000874,160.0,159.99,6.2496]
[1740378912031,0.04000874,160.0,159.97,6.29787451]
[1740378912331,13.50864151,159.98,159.97,0.04767451]
[1740378912642,21.84864151,159.98,159.87,34.87031775]
[1740378912826,13.50864151,159.91,159.87,34.87031775]
[1740378913337,13.50864151,159.91,159.88,6.2538]
[1740378913527,13.50864151,159.91,159.87,34.87031775]
[1740378913733,13.50864151,159.89,159.88,0.04656]
[1740378914433,13.50864151,159.89,159.87,34.87031775]
[1740378914632,13.50864151,159.89,159.86,68.28285281]
[1740378914827,13.50864151,159.87,159.86,68.28285281]
[1740378915338,10.2773,159.9,159.76,1.3048]
[1740378915339,13.50864151,159.89,159.82,13.50864151]
[1740378915539,13.50864151,159.89,159.85,6.3003061]
[1740378915730,0.0456449,159.87,159.85,6.3003061]
[1740378915930,0.0456449,159.87,159.85,0.0453061]
[1740378916137,0.0456449,159.87,159.86,19.76334151]
[1740378916538,0.0456449,159.87,159.86,6.2547]
[1740378918534,0.0456449,159.87,159.86,19.76334151]
[1740378919334,13.50864151,159.93,159.86,13.50864151]
[1740378919641,13.50864151,159.93,159.9,6.253]
[1740378919835,21.84864151,159.95,159.9,13.50864151]
[1740378920034,21.84864151,159.95,159.92,13.50864151]
[1740378920035,8.34,159.95,159.92,13.50864151]
[1740378920539,8.38099547,159.95,159.94,6.2515]
[1740378921136,0.04099547,159.95,159.94,6.2515]
[1740378921333,0.04099547,159.95,159.94,19.76014151]
[1740378921733,0.04099547,159.95,159.94,6.2515]
[1740378922343,6.2488,160.02,159.92,21.14313395]
[1740378922545,6.2488,160.02,159.97,6.2501]
[1740378923043,6.2488,160.02,159.93,3.8788]
[1740378923545,0.04773118,159.99,159.96,0.0404641]
[1740378924240,0.04773118,159.99,159.97,6.25]
[1740378925042,0.04773118,159.99,159.96,0.0404641]
[1740378925244,0.04773118,159.99,159.98,6.25]
[1740378928247,0.04773118,159.99,159.96,0.0404641]
[1740378928442,21.15123504,159.99,159.96,0.0404641]
[1740378928649,21.10350386,159.95,159.86,21.10350386]
[1740378928848,27.35470386,159.95,159.9,6.2528]
[1740378929748,0.04126457,159.94,159.91,0.03976761]
[1740378930545,21.10350386,159.93,159.91,0.03976761]
[1740378931343,27.35550386,159.93,159.91,0.03976761]
[1740378932853,21.10350386,159.93,159.91,0.03976761]
[1740378933044,6.2523,159.92,159.91,0.03976761]
[1740378933350,21.10350386,159.93,159.85,6.2549]